[Event "Titled Tuesday Blitz June 13 Late 2023"]
[White "Ouellet, Maili-Jade"]
[Black "deloewre"]
[WhiteFideId "2620472"]
[WhiteElo "2077"]
[BlackElo "2126"]
[Result "1-0"]
[Round "7"]
[TimeControl "180+2"]
[Date "2023.06.13"]
[WhiteClock "0:00:24"]
[BlackClock "0:00:00"]
[Board "150"]

1. e4 {[%clk 0:03:00]}  c5 {[%clk 0:02:46]} 2. Nf3 {[%clk 0:03:00]}  Nc6 {[%clk 0:02:44]} 3. Nc3 {[%clk 0:02:56]}  g6 {[%clk 0:02:42]} 4. d4 {[%clk 0:02:56]}  cxd4 {[%clk 0:02:41]} 5. Nxd4 {[%clk 0:02:56]}  Bg7 {[%clk 0:02:39]} 6. Be3 {[%clk 0:02:56]}  Nf6 {[%clk 0:02:38]} 7. Be2 {[%clk 0:02:53]}  O-O {[%clk 0:02:34]} 8. O-O {[%clk 0:02:53]}  d6 {[%clk 0:02:20]} 9. h3 {[%clk 0:02:49]}  Bd7 {[%clk 0:02:20]} 10. Qd2 {[%clk 0:02:30]}  Rc8 {[%clk 0:02:17]} 11. f4 {[%clk 0:02:15]}  Na5 {[%clk 0:02:02]} 12. Rad1 {[%clk 0:01:54]}  Nc4 {[%clk 0:02:00]} 13. Bxc4 {[%clk 0:01:54]}  Rxc4 {[%clk 0:01:58]} 14. e5 {[%clk 0:01:49]}  Ne8 {[%clk 0:01:50]} 15. Nf3 {[%clk 0:01:39]}  Qb8 {[%clk 0:01:28]} 16. b3 {[%clk 0:01:29]}  Rc8 {[%clk 0:01:24]} 17. Nd5 {[%clk 0:01:29]}  Kh8 {[%clk 0:00:46]} 18. Nxe7 {[%clk 0:01:26]}  Rd8 {[%clk 0:00:36]} 19. c4 {[%clk 0:01:11]}  dxe5 {[%clk 0:00:33]} 20. fxe5 {[%clk 0:01:11]}  Nc7 {[%clk 0:00:26]} 21. Qf2 {[%clk 0:00:44]}  Be6 {[%clk 0:00:18]} 22. Qh4 {[%clk 0:00:42]}  Rxd1 {[%clk 0:00:10]} 23. Rxd1 {[%clk 0:00:41]}  Ne8 {[%clk 0:00:05]} 24. Ng5 {[%clk 0:00:37]}  h6 {[%clk 0:00:03]} 25. Nxe6 {[%clk 0:00:36]}  fxe6 {[%clk 0:00:03]} 26. Bxh6 {[%clk 0:00:27]}  Qxe5 {[%clk 0:00:00]} 27. Bg5+ {[%clk 0:00:24]} 1-0


[Site "https://www.chess.com"]

[Event "Titled Tuesday Blitz June 13 Late 2023"]
[White "Rodriguez Santiago, Jaime"]
[Black "Vargas, Mauricio"]
[WhiteFideId "3100898"]
[BlackFideId "4404572"]
[WhiteElo "2025"]
[BlackElo "1986"]
[Result "1-0"]
[Round "7"]
[TimeControl "180+2"]
[Date "2023.06.13"]
[WhiteClock "0:00:29"]
[BlackClock "0:00:00"]
[Board "153"]

1. c4 {[%clk 0:03:00]}  e5 {[%clk 0:02:57]} 2. Nc3 {[%clk 0:02:59]}  Nc6 {[%clk 0:02:57]} 3. g3 {[%clk 0:02:59]}  f5 {[%clk 0:02:57]} 4. Bg2 {[%clk 0:02:59]}  Nf6 {[%clk 0:02:58]} 5. d3 {[%clk 0:02:58]}  Bb4 {[%clk 0:02:58]} 6. Bd2 {[%clk 0:02:53]}  O-O {[%clk 0:02:57]} 7. e3 {[%clk 0:02:53]}  d6 {[%clk 0:02:56]} 8. Nge2 {[%clk 0:02:53]}  Ne7 {[%clk 0:02:47]} 9. a3 {[%clk 0:02:50]}  Bxc3 {[%clk 0:02:45]} 10. Nxc3 {[%clk 0:02:49]}  c6 {[%clk 0:02:45]} 11. b4 {[%clk 0:02:48]}  Qe8 {[%clk 0:02:39]} 12. O-O {[%clk 0:02:47]}  Bd7 {[%clk 0:02:39]} 13. a4 {[%clk 0:02:46]}  Rb8 {[%clk 0:02:39]} 14. b5 {[%clk 0:02:43]}  Qg6 {[%clk 0:02:35]} 15. f4 {[%clk 0:02:27]}  Ng4 {[%clk 0:02:05]} 16. h3 {[%clk 0:02:08]}  Nf6 {[%clk 0:02:04]} 17. Kh2 {[%clk 0:02:07]}  Nh5 {[%clk 0:02:02]} 18. Be1 {[%clk 0:02:04]}  Kh8 {[%clk 0:01:43]} 19. Rb1 {[%clk 0:01:32]}  Qh6 {[%clk 0:01:40]} 20. Qf3 {[%clk 0:01:29]}  Nf6 {[%clk 0:01:39]} 21. Kg1 {[%clk 0:01:26]}  Rg8 {[%clk 0:01:15]} 22. Bd2 {[%clk 0:01:15]}  g5 {[%clk 0:01:14]} 23. fxg5 {[%clk 0:01:10]}  Qxg5 {[%clk 0:01:08]} 24. Ne2 {[%clk 0:01:04]}  Rbf8 {[%clk 0:01:05]} 25. Bc1 {[%clk 0:01:01]}  Qg6 {[%clk 0:00:38]} 26. Bb2 {[%clk 0:00:55]}  Nh5 {[%clk 0:00:32]} 27. Kh2 {[%clk 0:00:53]}  Rg7 {[%clk 0:00:15]} 28. c5 {[%clk 0:00:51]}  dxc5 {[%clk 0:00:09]} 29. Bxe5 {[%clk 0:00:49]}  Nf6 {[%clk 0:00:09]} 30. Nf4 {[%clk 0:00:43]}  Qf7 {[%clk 0:00:04]} 31. Bxf6 {[%clk 0:00:37]}  Qxf6 {[%clk 0:00:03]} 32. Nh5 {[%clk 0:00:37]}  Qg6 {[%clk 0:00:03]} 33. Nxg7 {[%clk 0:00:37]}  Qxg7 {[%clk 0:00:02]} 34. e4 {[%clk 0:00:36]}  Ng6 {[%clk 0:00:01]} 35. exf5 {[%clk 0:00:30]}  Bxf5 {[%clk 0:00:00]} 36. Rbc1 {[%clk 0:00:29]} 1-0


[Site "https://www.chess.com"]

[Event "Titled Tuesday Blitz June 13 Late 2023"]
[White "Rodrigues Mota, Romulo Cardoso S"]
[Black "rionelG"]
[WhiteFideId "2187442"]
[WhiteElo "2001"]
[BlackElo "2207"]
[Result "0-1"]
[Round "7"]
[TimeControl "180+2"]
[Date "2023.06.13"]
[WhiteClock "0:00:00"]
[BlackClock "0:01:39"]
[Board "154"]

1. e4 {[%clk 0:02:56]}  c5 {[%clk 0:02:59]} 2. Nf3 {[%clk 0:02:36]}  d6 {[%clk 0:02:59]} 3. d4 {[%clk 0:02:37]}  cxd4 {[%clk 0:02:59]} 4. Nxd4 {[%clk 0:02:37]}  Nf6 {[%clk 0:02:59]} 5. Nc3 {[%clk 0:02:38]}  a6 {[%clk 0:03:00]} 6. f3 {[%clk 0:02:36]}  e5 {[%clk 0:02:59]} 7. Nb3 {[%clk 0:02:28]}  Be7 {[%clk 0:02:53]} 8. Be3 {[%clk 0:02:28]}  Be6 {[%clk 0:02:53]} 9. Qd2 {[%clk 0:02:21]}  O-O {[%clk 0:02:53]} 10. O-O-O {[%clk 0:02:17]}  a5 {[%clk 0:02:50]} 11. Kb1 {[%clk 0:02:01]}  a4 {[%clk 0:02:50]} 12. Nc1 {[%clk 0:02:01]}  Ra5 {[%clk 0:02:46]} 13. g4 {[%clk 0:01:44]}  d5 {[%clk 0:02:34]} 14. g5 {[%clk 0:01:36]}  Nxe4 {[%clk 0:02:34]} 15. fxe4 {[%clk 0:01:26]}  d4 {[%clk 0:02:34]} 16. Qe1 {[%clk 0:01:13]}  Qc7 {[%clk 0:02:19]} 17. Nb5 {[%clk 0:01:10]}  Qb6 {[%clk 0:02:04]} 18. Bd2 {[%clk 0:00:36]}  Rxb5 {[%clk 0:01:53]} 19. Bxb5 {[%clk 0:00:37]}  Qxb5 {[%clk 0:01:54]} 20. Qe2 {[%clk 0:00:37]}  Bc4 {[%clk 0:01:53]} 21. Nd3 {[%clk 0:00:36]}  Nc6 {[%clk 0:01:49]} 22. h4 {[%clk 0:00:19]}  Nb4 {[%clk 0:01:47]} 23. Bxb4 {[%clk 0:00:17]}  Bxb4 {[%clk 0:01:47]} 24. Qf3 {[%clk 0:00:14]}  Bc3 {[%clk 0:01:44]} 25. b3 {[%clk 0:00:11]}  axb3 {[%clk 0:01:38]} 26. cxb3 {[%clk 0:00:11]}  Bxb3 {[%clk 0:01:38]} 27. axb3 {[%clk 0:00:06]}  Qxb3+ {[%clk 0:01:39]} 28. Kc1 {[%clk 0:00:00]}  Ra8 {[%clk 0:01:39]} 0-1


[Site "https://www.chess.com"]

[Event "Titled Tuesday Blitz June 13 Late 2023"]
[White "Novikova, Margarita"]
[Black "Powell, Paul"]
[WhiteFideId "14109689"]
[BlackFideId "2005840"]
[WhiteElo "2013"]
[BlackElo "2149"]
[Result "0-1"]
[Round "7"]
[TimeControl "180+2"]
[Date "2023.06.13"]
[WhiteClock "0:01:49"]
[BlackClock "0:01:22"]
[Board "155"]

1. e4 {[%clk 0:03:00]}  c5 {[%clk 0:02:59]} 2. Nc3 {[%clk 0:02:58]}  d6 {[%clk 0:02:59]} 3. d3 {[%clk 0:02:59]}  g6 {[%clk 0:02:59]} 4. Be3 {[%clk 0:02:59]}  Bg7 {[%clk 0:02:59]} 5. Qd2 {[%clk 0:02:59]}  Nc6 {[%clk 0:02:57]} 6. g3 {[%clk 0:02:59]}  e6 {[%clk 0:02:55]} 7. Bg2 {[%clk 0:02:58]}  Nd4 {[%clk 0:02:54]} 8. Nd1 {[%clk 0:02:58]}  Bd7 {[%clk 0:02:45]} 9. c3 {[%clk 0:02:58]}  Nc6 {[%clk 0:02:45]} 10. Ne2 {[%clk 0:02:58]}  Rb8 {[%clk 0:02:40]} 11. h4 {[%clk 0:02:57]}  h5 {[%clk 0:02:39]} 12. d4 {[%clk 0:02:57]}  cxd4 {[%clk 0:02:38]} 13. cxd4 {[%clk 0:02:58]}  b5 {[%clk 0:02:32]} 14. O-O {[%clk 0:02:52]}  Nf6 {[%clk 0:02:26]} 15. f3 {[%clk 0:02:50]}  Na5 {[%clk 0:02:15]} 16. b3 {[%clk 0:02:49]}  Rc8 {[%clk 0:02:13]} 17. Nb2 {[%clk 0:02:47]}  O-O {[%clk 0:02:05]} 18. Rac1 {[%clk 0:02:46]}  Nc6 {[%clk 0:02:00]} 19. d5 {[%clk 0:02:43]}  exd5 {[%clk 0:01:56]} 20. exd5 {[%clk 0:02:44]}  Ne5 {[%clk 0:01:56]} 21. Bxa7 {[%clk 0:02:33]}  Rxc1 {[%clk 0:01:46]} 22. Rxc1 {[%clk 0:02:32]}  Qa8 {[%clk 0:01:46]} 23. Bd4 {[%clk 0:02:18]}  Qxd5 {[%clk 0:01:33]} 24. f4 {[%clk 0:02:14]}  Nf3+ {[%clk 0:01:29]} 25. Bxf3 {[%clk 0:02:14]}  Qxf3 {[%clk 0:01:30]} 26. Bf2 {[%clk 0:01:49]}  Bh3 {[%clk 0:01:22]} 0-1


[Site "https://www.chess.com"]

[Event "Titled Tuesday Blitz June 13 Late 2023"]
[White "Duda, Jan-Krzysztof"]
[Black "Kovalev, Vladislav"]
[WhiteFideId "1170546"]
[BlackFideId "13504398"]
[WhiteElo "2783"]
[BlackElo "2555"]
[Result "1-0"]
[Round "8"]
[TimeControl "180+2"]
[Date "2023.06.13"]
[WhiteClock "0:00:01"]
[BlackClock "0:00:01"]
[Board "2"]

1. e4 {[%clk 0:03:00]}  e5 {[%clk 0:02:59]} 2. Nf3 {[%clk 0:03:00]}  Nc6 {[%clk 0:03:00]} 3. Bb5 {[%clk 0:03:01]}  a6 {[%clk 0:03:00]} 4. Ba4 {[%clk 0:03:01]}  Nf6 {[%clk 0:03:01]} 5. O-O {[%clk 0:03:01]}  Be7 {[%clk 0:03:01]} 6. Re1 {[%clk 0:03:02]}  b5 {[%clk 0:03:02]} 7. Bb3 {[%clk 0:03:03]}  d6 {[%clk 0:03:02]} 8. c3 {[%clk 0:03:03]}  O-O {[%clk 0:03:03]} 9. h3 {[%clk 0:03:04]}  Be6 {[%clk 0:03:03]} 10. d4 {[%clk 0:02:59]}  Bxb3 {[%clk 0:03:03]} 11. axb3 {[%clk 0:03:00]}  exd4 {[%clk 0:02:52]} 12. cxd4 {[%clk 0:03:00]}  Nb4 {[%clk 0:02:53]} 13. d5 {[%clk 0:02:44]}  c5 {[%clk 0:02:35]} 14. dxc6 {[%clk 0:02:34]}  Nxc6 {[%clk 0:02:35]} 15. Nc3 {[%clk 0:02:34]}  Re8 {[%clk 0:02:25]} 16. Re2 {[%clk 0:02:26]}  h6 {[%clk 0:02:13]} 17. Bf4 {[%clk 0:02:11]}  Bf8 {[%clk 0:02:10]} 18. Qd3 {[%clk 0:02:10]}  Ne5 {[%clk 0:01:21]} 19. Bxe5 {[%clk 0:01:24]}  dxe5 {[%clk 0:01:22]} 20. Qxd8 {[%clk 0:01:25]}  Rexd8 {[%clk 0:01:22]} 21. Nxe5 {[%clk 0:01:24]}  Rac8 {[%clk 0:00:40]} 22. Ng4 {[%clk 0:01:16]}  Nxg4 {[%clk 0:00:35]} 23. hxg4 {[%clk 0:01:17]}  Rc6 {[%clk 0:00:34]} 24. Nd5 {[%clk 0:01:14]}  Rdc8 {[%clk 0:00:28]} 25. g3 {[%clk 0:00:56]}  g6 {[%clk 0:00:28]} 26. e5 {[%clk 0:00:40]}  Kg7 {[%clk 0:00:27]} 27. Kg2 {[%clk 0:00:33]}  Rc2 {[%clk 0:00:14]} 28. Rae1 {[%clk 0:00:30]}  R8c5 {[%clk 0:00:11]} 29. Nc3 {[%clk 0:00:20]}  Rxe2 {[%clk 0:00:10]} 30. Rxe2 {[%clk 0:00:21]}  b4 {[%clk 0:00:05]} 31. Na4 {[%clk 0:00:20]}  Rc6 {[%clk 0:00:04]} 32. f4 {[%clk 0:00:18]}  Be7 {[%clk 0:00:04]} 33. Kf3 {[%clk 0:00:18]}  f6 {[%clk 0:00:04]} 34. exf6+ {[%clk 0:00:11]}  Kxf6 {[%clk 0:00:04]} 35. Re4 {[%clk 0:00:05]}  Rd6 {[%clk 0:00:02]} 36. Nc5 {[%clk 0:00:02]}  Rd1 {[%clk 0:00:01]} 37. Ne6 {[%clk 0:00:02]}  Rd3+ {[%clk 0:00:01]} 38. Kg2 {[%clk 0:00:02]}  Rxb3 {[%clk 0:00:02]} 39. g5+ {[%clk 0:00:02]}  hxg5 {[%clk 0:00:02]} 40. Nxg5 {[%clk 0:00:01]}  Rxb2+ {[%clk 0:00:02]} 41. Kf3 {[%clk 0:00:01]}  Bc5 {[%clk 0:00:02]} 42. Rc4 {[%clk 0:00:01]}  Ba7 {[%clk 0:00:01]} 43. Rc7 {[%clk 0:00:01]}  Bb6 {[%clk 0:00:01]} 44. Rf7# {[%clk 0:00:01]} 1-0


[Site "https://www.chess.com"]

[Event "Titled Tuesday Blitz June 13 Late 2023"]
[White "Fressinet, Laurent"]
[Black "Vazquez, Guillermo"]
[WhiteFideId "608742"]
[BlackFideId "3702308"]
[WhiteElo "2633"]
[BlackElo "2543"]
[Result "1-0"]
[Round "8"]
[TimeControl "180+2"]
[Date "2023.06.13"]
[WhiteClock "0:00:32"]
[BlackClock "0:00:04"]
[Board "4"]

1. d4 {[%clk 0:03:00]}  d5 {[%clk 0:02:59]} 2. Nf3 {[%clk 0:02:58]}  e6 {[%clk 0:02:57]} 3. Bg5 {[%clk 0:02:58]}  Be7 {[%clk 0:02:52]} 4. Bxe7 {[%clk 0:02:58]}  Qxe7 {[%clk 0:02:53]} 5. e3 {[%clk 0:02:57]}  Nf6 {[%clk 0:02:52]} 6. c4 {[%clk 0:02:56]}  O-O {[%clk 0:02:46]} 7. Nc3 {[%clk 0:02:55]}  dxc4 {[%clk 0:02:45]} 8. Bxc4 {[%clk 0:02:56]}  a6 {[%clk 0:02:45]} 9. O-O {[%clk 0:02:45]}  b5 {[%clk 0:02:43]} 10. Be2 {[%clk 0:02:46]}  Nbd7 {[%clk 0:02:37]} 11. Ne5 {[%clk 0:02:41]}  Bb7 {[%clk 0:02:26]} 12. Bf3 {[%clk 0:02:40]}  Bxf3 {[%clk 0:02:23]} 13. Qxf3 {[%clk 0:02:41]}  Nxe5 {[%clk 0:02:23]} 14. dxe5 {[%clk 0:02:41]}  Nd7 {[%clk 0:02:23]} 15. Qg3 {[%clk 0:02:38]}  Rad8 {[%clk 0:02:10]} 16. Rac1 {[%clk 0:02:31]}  Nc5 {[%clk 0:01:56]} 17. Ne2 {[%clk 0:02:30]}  Nd3 {[%clk 0:01:53]} 18. Rc6 {[%clk 0:02:16]}  Nb4 {[%clk 0:01:46]} 19. Rc3 {[%clk 0:02:16]}  c5 {[%clk 0:01:46]} 20. a3 {[%clk 0:02:10]}  Nd3 {[%clk 0:01:43]} 21. b3 {[%clk 0:02:09]}  b4 {[%clk 0:01:18]} 22. axb4 {[%clk 0:02:06]}  cxb4 {[%clk 0:01:19]} 23. Rc4 {[%clk 0:02:02]}  Rc8 {[%clk 0:01:13]} 24. Rd4 {[%clk 0:01:44]}  Rfd8 {[%clk 0:01:06]} 25. Rxd8+ {[%clk 0:01:40]}  Rxd8 {[%clk 0:00:59]} 26. Nd4 {[%clk 0:01:40]}  Qb7 {[%clk 0:00:55]} 27. Ra1 {[%clk 0:01:26]}  h6 {[%clk 0:00:53]} 28. f4 {[%clk 0:01:23]}  Rc8 {[%clk 0:00:51]} 29. f5 {[%clk 0:01:21]}  Qd5 {[%clk 0:00:38]} 30. fxe6 {[%clk 0:01:01]}  fxe6 {[%clk 0:00:39]} 31. h4 {[%clk 0:00:50]}  a5 {[%clk 0:00:24]} 32. Rf1 {[%clk 0:00:41]}  Rc1 {[%clk 0:00:21]} 33. Rxc1 {[%clk 0:00:38]}  Nxc1 {[%clk 0:00:22]} 34. Qg6 {[%clk 0:00:38]}  Qxe5 {[%clk 0:00:14]} 35. Nxe6 {[%clk 0:00:34]}  Qxe3+ {[%clk 0:00:13]} 36. Kh2 {[%clk 0:00:34]}  Qe5+ {[%clk 0:00:13]} 37. Kh3 {[%clk 0:00:32]}  Qf6 {[%clk 0:00:05]} 38. Qe8+ {[%clk 0:00:32]}  Kh7 {[%clk 0:00:05]} 39. Nf8+ {[%clk 0:00:32]}  Kg8 {[%clk 0:00:04]} 40. Nd7+ {[%clk 0:00:32]} 1-0


[Site "https://www.chess.com"]

[Event "Titled Tuesday Blitz June 13 Late 2023"]
[White "Martinez Alcantara, Jose Eduardo"]
[Black "Manea, Alexandru"]
[WhiteFideId "3805662"]
[BlackFideId "1207660"]
[WhiteElo "2711"]
[BlackElo "2226"]
[Result "1-0"]
[Round "8"]
[TimeControl "180+2"]
[Date "2023.06.13"]
[WhiteClock "0:01:18"]
[BlackClock "0:01:06"]
[Board "15"]

1. e4 {[%clk 0:03:00]}  Nf6 {[%clk 0:02:59]} 2. e5 {[%clk 0:02:59]}  Nd5 {[%clk 0:03:00]} 3. Nc3 {[%clk 0:03:00]}  Nxc3 {[%clk 0:02:59]} 4. dxc3 {[%clk 0:03:01]}  d5 {[%clk 0:03:00]} 5. exd6 {[%clk 0:02:38]}  Qxd6 {[%clk 0:02:59]} 6. Bd3 {[%clk 0:02:36]}  Nc6 {[%clk 0:02:59]} 7. Nf3 {[%clk 0:02:35]}  Bg4 {[%clk 0:02:59]} 8. h3 {[%clk 0:02:34]}  Bh5 {[%clk 0:02:59]} 9. Qe2 {[%clk 0:02:33]}  Bg6 {[%clk 0:02:47]} 10. Bb5 {[%clk 0:02:22]}  a6 {[%clk 0:02:42]} 11. Ba4 {[%clk 0:02:22]}  O-O-O {[%clk 0:02:37]} 12. Be3 {[%clk 0:02:20]}  e5 {[%clk 0:02:24]} 13. O-O {[%clk 0:02:20]}  f6 {[%clk 0:02:22]} 14. Rfd1 {[%clk 0:02:20]}  Qe6 {[%clk 0:02:19]} 15. Rxd8+ {[%clk 0:02:19]}  Nxd8 {[%clk 0:02:19]} 16. Bb3 {[%clk 0:02:16]}  Qc6 {[%clk 0:02:17]} 17. Rd1 {[%clk 0:02:14]}  Bd6 {[%clk 0:02:16]} 18. Nh4 {[%clk 0:02:13]}  f5 {[%clk 0:02:08]} 19. Bd5 {[%clk 0:01:49]}  Qb5 {[%clk 0:01:56]} 20. c4 {[%clk 0:01:49]}  Qxb2 {[%clk 0:01:55]} 21. c5 {[%clk 0:01:49]}  Be7 {[%clk 0:01:53]} 22. c6 {[%clk 0:01:44]}  Bxh4 {[%clk 0:01:37]} 23. cxb7+ {[%clk 0:01:44]}  Nxb7 {[%clk 0:01:22]} 24. Be6+ {[%clk 0:01:26]}  Kb8 {[%clk 0:01:19]} 25. Qxa6 {[%clk 0:01:27]}  c6 {[%clk 0:01:10]} 26. Qa7+ {[%clk 0:01:18]}  Kc7 {[%clk 0:01:06]} 27. Rd7+ {[%clk 0:01:18]} 1-0


[Site "https://www.chess.com"]

[Event "Titled Tuesday Blitz June 13 Late 2023"]
[White "Lobanov, Sergei"]
[Black "Bortnyk, Olexandr"]
[WhiteFideId "24183750"]
[BlackFideId "14120828"]
[WhiteElo "2501"]
[BlackElo "2733"]
[Result "0-1"]
[Round "8"]
[TimeControl "180+2"]
[Date "2023.06.13"]
[WhiteClock "0:00:02"]
[BlackClock "0:00:04"]
[Board "17"]

1. d4 {[%clk 0:03:00]}  Nf6 {[%clk 0:02:58]} 2. c4 {[%clk 0:03:01]}  b6 {[%clk 0:02:58]} 3. Nc3 {[%clk 0:03:00]}  Bb7 {[%clk 0:02:58]} 4. Bg5 {[%clk 0:02:51]}  e6 {[%clk 0:02:45]} 5. a3 {[%clk 0:02:20]}  c5 {[%clk 0:02:40]} 6. d5 {[%clk 0:02:17]}  exd5 {[%clk 0:02:38]} 7. cxd5 {[%clk 0:02:17]}  Bd6 {[%clk 0:02:37]} 8. Nf3 {[%clk 0:02:13]}  O-O {[%clk 0:02:37]} 9. e3 {[%clk 0:02:12]}  Re8 {[%clk 0:02:16]} 10. Bd3 {[%clk 0:02:06]}  Be7 {[%clk 0:01:48]} 11. d6 {[%clk 0:01:29]}  Bf8 {[%clk 0:01:29]} 12. Bc4 {[%clk 0:01:22]}  h6 {[%clk 0:01:12]} 13. Bh4 {[%clk 0:01:22]}  Nc6 {[%clk 0:00:44]} 14. Nd5 {[%clk 0:00:47]}  Re6 {[%clk 0:00:28]} 15. Nxf6+ {[%clk 0:00:44]}  Rxf6 {[%clk 0:00:28]} 16. Bxf6 {[%clk 0:00:21]}  Qxf6 {[%clk 0:00:29]} 17. O-O {[%clk 0:00:21]}  Bxd6 {[%clk 0:00:29]} 18. Qd2 {[%clk 0:00:19]}  Na5 {[%clk 0:00:28]} 19. Bd5 {[%clk 0:00:18]}  Bc6 {[%clk 0:00:16]} 20. Rfd1 {[%clk 0:00:17]}  Rd8 {[%clk 0:00:15]} 21. Rab1 {[%clk 0:00:16]}  Qg6 {[%clk 0:00:10]} 22. b4 {[%clk 0:00:15]}  cxb4 {[%clk 0:00:09]} 23. axb4 {[%clk 0:00:15]}  Nb7 {[%clk 0:00:10]} 24. b5 {[%clk 0:00:14]}  Bxd5 {[%clk 0:00:09]} 25. Qxd5 {[%clk 0:00:15]}  Rb8 {[%clk 0:00:10]} 26. Rbc1 {[%clk 0:00:14]}  Bc5 {[%clk 0:00:09]} 27. h3 {[%clk 0:00:14]}  d6 {[%clk 0:00:08]} 28. Rc4 {[%clk 0:00:13]}  Na5 {[%clk 0:00:08]} 29. Rg4 {[%clk 0:00:12]}  Qe6 {[%clk 0:00:08]} 30. Re4 {[%clk 0:00:09]}  Qxd5 {[%clk 0:00:08]} 31. Rxd5 {[%clk 0:00:10]}  Kf8 {[%clk 0:00:07]} 32. Nd4 {[%clk 0:00:09]}  Rc8 {[%clk 0:00:07]} 33. Rf5 {[%clk 0:00:09]}  g6 {[%clk 0:00:03]} 34. Rf6 {[%clk 0:00:05]}  Kg7 {[%clk 0:00:03]} 35. Rf3 {[%clk 0:00:04]}  Rc7 {[%clk 0:00:03]} 36. Re8 {[%clk 0:00:04]}  Nc4 {[%clk 0:00:03]} 37. g4 {[%clk 0:00:03]}  Na3 {[%clk 0:00:02]} 38. h4 {[%clk 0:00:03]}  Bxd4 {[%clk 0:00:02]} 39. exd4 {[%clk 0:00:03]}  Nxb5 {[%clk 0:00:03]} 40. d5 {[%clk 0:00:03]}  Nc3 {[%clk 0:00:03]} 41. Rd3 {[%clk 0:00:02]}  b5 {[%clk 0:00:03]} 42. g5 {[%clk 0:00:02]}  h5 {[%clk 0:00:03]} 43. Rb8 {[%clk 0:00:02]}  a5 {[%clk 0:00:03]} 44. Re3 {[%clk 0:00:02]}  Nxd5 {[%clk 0:00:02]} 45. Ree8 {[%clk 0:00:02]}  Ne7 {[%clk 0:00:03]} 46. Rxb5 {[%clk 0:00:03]}  Ra7 {[%clk 0:00:03]} 47. Rb2 {[%clk 0:00:02]}  a4 {[%clk 0:00:04]} 48. Ra2 {[%clk 0:00:03]}  a3 {[%clk 0:00:04]} 49. Kh2 {[%clk 0:00:03]}  Nd5 {[%clk 0:00:04]} 50. Kg3 {[%clk 0:00:03]}  Nb4 {[%clk 0:00:03]} 51. Ra1 {[%clk 0:00:03]}  a2 {[%clk 0:00:04]} 52. Re2 {[%clk 0:00:03]}  Ra3+ {[%clk 0:00:03]} 53. f3 {[%clk 0:00:03]}  d5 {[%clk 0:00:03]} 54. Rb2 {[%clk 0:00:04]}  Ra4 {[%clk 0:00:04]} 55. Rb3 {[%clk 0:00:04]}  d4 {[%clk 0:00:04]} 56. Kf2 {[%clk 0:00:02]}  Nc2 {[%clk 0:00:04]} 0-1


[Site "https://www.chess.com"]

[Event "Titled Tuesday Blitz June 13 Late 2023"]
[White "Fernandez Guillen, Ernesto J."]
[Black "Demidov, Mikhail"]
[WhiteFideId "3512428"]
[BlackFideId "4197143"]
[WhiteElo "2434"]
[BlackElo "2500"]
[Result "0-1"]
[Round "8"]
[TimeControl "180+2"]
[Date "2023.06.13"]
[WhiteClock "0:00:02"]
[BlackClock "0:00:12"]
[Board "18"]

1. e4 {[%clk 0:02:56]}  g6 {[%clk 0:02:59]} 2. d4 {[%clk 0:02:56]}  Bg7 {[%clk 0:03:00]} 3. Nc3 {[%clk 0:02:56]}  a6 {[%clk 0:03:00]} 4. Be3 {[%clk 0:02:56]}  b5 {[%clk 0:03:00]} 5. f3 {[%clk 0:02:57]}  Bb7 {[%clk 0:03:00]} 6. Qd2 {[%clk 0:02:58]}  d6 {[%clk 0:03:01]} 7. h4 {[%clk 0:02:57]}  h5 {[%clk 0:03:00]} 8. Nh3 {[%clk 0:02:57]}  Nd7 {[%clk 0:03:00]} 9. O-O-O {[%clk 0:02:56]}  Rc8 {[%clk 0:02:54]} 10. Kb1 {[%clk 0:02:56]}  c5 {[%clk 0:02:54]} 11. Ng5 {[%clk 0:02:55]}  cxd4 {[%clk 0:02:52]} 12. Bxd4 {[%clk 0:02:56]}  Bxd4 {[%clk 0:02:52]} 13. Qxd4 {[%clk 0:02:55]}  Ngf6 {[%clk 0:02:52]} 14. Nd5 {[%clk 0:02:48]}  Bxd5 {[%clk 0:02:18]} 15. exd5 {[%clk 0:02:47]}  Qc7 {[%clk 0:02:16]} 16. Bd3 {[%clk 0:02:45]}  Qc5 {[%clk 0:02:14]} 17. Qf4 {[%clk 0:02:44]}  Ne5 {[%clk 0:02:11]} 18. Rhe1 {[%clk 0:01:09]}  Nxd5 {[%clk 0:01:52]} 19. Qe4 {[%clk 0:01:06]}  Nf6 {[%clk 0:01:46]} 20. Qe2 {[%clk 0:01:02]}  O-O {[%clk 0:01:36]} 21. g4 {[%clk 0:00:54]}  Qb4 {[%clk 0:01:21]} 22. gxh5 {[%clk 0:00:21]}  Nxh5 {[%clk 0:01:19]} 23. Ne4 {[%clk 0:00:20]}  Rc7 {[%clk 0:01:06]} 24. c3 {[%clk 0:00:15]}  Qa5 {[%clk 0:01:02]} 25. Bc2 {[%clk 0:00:15]}  b4 {[%clk 0:00:59]} 26. cxb4 {[%clk 0:00:14]}  Qxb4 {[%clk 0:00:58]} 27. Bb3 {[%clk 0:00:14]}  Kg7 {[%clk 0:00:56]} 28. Qe3 {[%clk 0:00:09]}  a5 {[%clk 0:00:50]} 29. f4 {[%clk 0:00:10]}  Ng4 {[%clk 0:00:51]} 30. Qf3 {[%clk 0:00:04]}  a4 {[%clk 0:00:44]} 31. Qxg4 {[%clk 0:00:04]}  axb3 {[%clk 0:00:44]} 32. a3 {[%clk 0:00:05]}  Qa5 {[%clk 0:00:35]} 33. f5 {[%clk 0:00:04]}  Qxf5 {[%clk 0:00:34]} 34. Qxf5 {[%clk 0:00:05]}  gxf5 {[%clk 0:00:35]} 35. Rg1+ {[%clk 0:00:06]}  Kh6 {[%clk 0:00:30]} 36. Ng5 {[%clk 0:00:05]}  f4 {[%clk 0:00:20]} 37. Rd3 {[%clk 0:00:05]}  Rb7 {[%clk 0:00:20]} 38. Rf1 {[%clk 0:00:04]}  f6 {[%clk 0:00:16]} 39. Ne6 {[%clk 0:00:04]}  Rc8 {[%clk 0:00:16]} 40. Nxf4 {[%clk 0:00:03]}  Nxf4 {[%clk 0:00:16]} 41. Rxf4 {[%clk 0:00:04]}  Rc5 {[%clk 0:00:15]} 42. Rff3 {[%clk 0:00:04]}  Rcb5 {[%clk 0:00:13]} 43. Rfe3 {[%clk 0:00:03]}  Kg6 {[%clk 0:00:12]} 44. Rd4 {[%clk 0:00:04]}  Kf7 {[%clk 0:00:12]} 45. Rc4 {[%clk 0:00:03]}  e5 {[%clk 0:00:12]} 46. Rcc3 {[%clk 0:00:03]}  Ke6 {[%clk 0:00:13]} 47. Rc6 {[%clk 0:00:03]}  f5 {[%clk 0:00:12]} 48. Ra6 {[%clk 0:00:03]}  f4 {[%clk 0:00:12]} 49. Rd3 {[%clk 0:00:04]}  Rd5 {[%clk 0:00:12]} 50. Rxd5 {[%clk 0:00:03]}  Kxd5 {[%clk 0:00:13]} 51. Kc1 {[%clk 0:00:03]}  Ke4 {[%clk 0:00:12]} 52. Kd2 {[%clk 0:00:04]}  d5 {[%clk 0:00:12]} 53. h5 {[%clk 0:00:03]}  f3 {[%clk 0:00:11]} 54. h6 {[%clk 0:00:03]}  Rc7 {[%clk 0:00:12]} 55. Rf6 {[%clk 0:00:04]}  Rc2+ {[%clk 0:00:12]} 56. Ke1 {[%clk 0:00:04]}  Rxb2 {[%clk 0:00:12]} 57. h7 {[%clk 0:00:04]}  Rh2 {[%clk 0:00:12]} 58. Rf7 {[%clk 0:00:02]}  b2 {[%clk 0:00:12]} 0-1


[Site "https://www.chess.com"]